bitfinex/quotes_ETHUSD_20250413
["timestamp","ask_amount","ask_price","bid_price","bid_amount"]
[1744562721135,4.21934084,1592.6,1592.5,7.32545595]
[1744562722922,4.21934084,1592.6,1592.5,7.38824276]
[1744562723288,12.82787,1592.9,1592.6,6.2789]
[1744562723518,6.27787,1592.9,1592.6,7.6393356]
[1744562723827,6.27787,1592.9,1592.7,0.24077595]
[1744562724725,6.27753,1593.0,1592.7,0.24077595]
[1744562724924,12.5552,1593.0,1592.7,6.51939595]
[1744562725132,6.27786,1592.9,1592.7,0.24077595]
[1744562726687,4.21934084,1593.1,1592.8,0.7545]
[1744562727030,4.21934084,1593.1,1592.9,6.34049786]
[1744562727230,4.21934084,1593.1,1592.9,6.58127381]
[1744562727390,4.21934084,1593.1,1592.9,12.85898381]
[1744562727824,4.21934084,1593.1,1592.9,6.58126381]
[1744562728132,4.21934084,1593.1,1592.9,7.87987933]
[1744562728429,4.21934084,1593.1,1592.9,7.94264966]
[1744562728828,4.21934084,1593.1,1592.9,14.22035966]
[1744562729032,4.21934084,1593.1,1592.9,14.15758933]
[1744562729839,67.21422,1593.4,1593.0,6.27745]
[1744562730127,6.27595,1593.4,1593.1,7.26893562]
[1744562730630,20.85004084,1593.5,1593.1,13.54584562]
[1744562730928,27.12578084,1593.5,1593.1,7.26879562]
[1744562731292,17.85004084,1593.5,1593.2,6.27654]
[1744562731491,10.76834084,1593.5,1593.2,14.13936871]
[1744562731732,4.21934084,1593.5,1593.2,14.13936871]
[1744562731931,4.21934084,1593.5,1593.3,7.09757]
[1744562732136,4.21934084,1593.5,1593.3,0.22987835]
[1744562732318,6.27588,1593.4,1593.3,0.22987835]
[1744562732530,6.27632,1593.3,1592.9,13.37674]
[1744562733405,6.27746,1593.0,1592.7,0.8213]
[1744562733605,6.27787,1592.9,1592.6,6.27891]
[1744562733844,6.27787,1592.9,1592.6,7.10021]
[1744562734015,6.27787,1592.9,1592.6,9.092265]
[1744562734530,6.27864,1592.7,1592.4,0.8213]
[1744562735048,6.74211216,1593.0,1592.5,6.27926]
[1744562735049,6.27797,1592.9,1592.5,6.27926]
[1744562735342,6.27797,1592.9,1592.6,6.27899]
[1744562735721,6.27797,1592.9,1592.7,0.7612]
[1744562735926,6.27693,1593.2,1592.9,0.7612]
[1744562736430,12.55399,1593.2,1592.9,0.7612]
[1744562736751,12.55399,1593.2,1593.0,0.23096775]
[1744562737540,6.27635,1593.3,1593.0,6.50825775]
[1744562737841,17.03627084,1593.4,1593.0,6.50825775]
[1744562738146,17.03627084,1593.4,1593.0,7.23520353]
[1744562738647,6.2764,1593.3,1593.0,7.23520353]
[1744562738942,10.76034084,1593.4,1593.1,12.55395]
[1744562739119,4.21934084,1593.4,1593.1,12.55395]
[1744562739307,4.21934084,1593.4,1593.2,13.60644775]
[1744562739654,6.27512,1593.6,1593.2,13.60644775]
[1744562739655,4.21934084,1593.5,1593.2,14.97336892]
[1744562739802,10.49486084,1593.5,1593.2,8.69671892]
[1744562740203,16.77059084,1593.5,1593.2,8.69671892]
[1744562740407,10.49486084,1593.5,1593.2,8.69671892]
[1744562741342,16.77064084,1593.5,1593.2,2.42018892]
[1744562741651,16.77064084,1593.5,1593.2,0.23096775]
[1744562741847,6.27592,1593.4,1593.2,0.23096775]
[1744562742015,6.27592,1593.4,1593.1,7.04079]
[1744562742217,6.27592,1593.4,1593.3,0.23096775]
[1744562742530,7.09692,1593.4,1593.3,0.23096775]
[1744562742730,6.27679,1593.2,1592.9,0.7638]
[1744562743129,6.27709,1593.1,1592.8,6.27815]
[1744562743848,7.09809,1593.1,1592.8,6.27815]
[1744562746219,6.27751,1593.0,1592.7,7.746379]
[1744562746548,6.27751,1593.0,1592.8,0.7746379]
[1744562746751,6.27803,1592.9,1592.6,7.04359]
[1744562747046,12.55617,1592.9,1592.5,13.3233]
[1744562747254,6.27753,1593.0,1592.6,13.89021]
[1744562747616,6.27753,1593.0,1592.6,7.61122]
[1744562747817,7.09808,1593.1,1592.8,6.27818]
[1744562748059,6.27708,1593.1,1592.8,13.32096]
[1744562748366,26.04262,1593.3,1592.9,12.5557]
[1744562748520,7.3199,1593.3,1593.0,6.27727]
[1744562748719,6.54,1593.3,1593.0,6.27727]
[1744562749120,12.81644,1593.3,1593.0,6.27727]
[1744562749433,12.81644,1593.3,1593.0,12.5546]
[1744562749634,12.81644,1593.3,1593.0,6.27727]
[1744562749820,12.81644,1593.3,1593.0,7.665978]
[1744562751033,12.81644,1593.3,1593.0,13.943278]
[1744562751230,12.81644,1593.3,1593.1,0.21147927]
[1744562751620,11.31382084,1593.5,1593.2,6.27665]
[1744562751845,4.21934084,1593.5,1593.2,7.00948973]
[1744562752043,4.21934084,1593.5,1593.3,6.27612]
[1744562752261,4.21934084,1593.5,1593.3,6.4855412]
[1744562752430,4.21934084,1593.5,1593.4,6.27588]
[1744562752639,4.21934084,1593.5,1593.4,7.05428]
[1744562752838,17.03406084,1593.7,1593.4,8.61756227]
[1744562753143,4.21934084,1593.7,1593.6,6.2751]
[1744562753757,4.21934084,1593.7,1593.6,6.48185834]
[1744562753956,4.21934084,1593.7,1593.6,7.26025834]
[1744562754162,4.21934084,1593.7,1593.6,8.92671048]
[1744562754362,4.21934084,1593.7,1593.6,9.47671048]
[1744562757368,12.54582,1594.2,1593.8,6.27405]
[1744562757575,6.2732,1594.1,1593.8,6.27405]
[1744562757738,6.2732,1594.1,1593.9,0.20433813]
[1744562758668,7.10122,1594.0,1593.9,0.20433813]
[1744562758967,6.27444,1593.8,1593.5,6.27545]
[1744562759172,6.27534,1593.6,1593.4,1.35398212]
[1744562759345,7.10242,1593.7,1593.3,6.27614]
[1744562759541,7.10242,1593.7,1593.4,6.27586]
[1744562759743,0.8277,1593.7,1593.4,6.27575]
[1744562760374,6.27437,1593.8,1593.5,6.27547]
[1744562760533,7.10169,1593.9,1593.3,6.27627]
[1744562760534,6.27488,1593.7,1593.3,6.27627]
[1744562760729,6.27585,1593.5,1593.1,6.27704]
[1744562761073,0.8306,1593.6,1593.3,6.27627]
[1744562761227,13.37979,1593.8,1593.4,6.27571]
[1744562761431,7.10518,1593.8,1593.4,6.27571]
[1744562761663,9.27392,1593.9,1593.5,6.27524]
[1744562761866,7.3686,1594.0,1593.6,0.8171]
[1744562762069,6.538,1594.0,1593.7,12.54898]
[1744562762231,13.27339,1594.2,1593.8,6.27413]
[1744562762433,13.27339,1594.2,1593.9,6.27389]
[1744562762676,7.10339,1594.2,1593.9,6.27389]
[1744562763370,0.8306,1594.2,1593.9,6.27389]
[1744562763577,6.27241,1594.3,1593.9,7.718379]
[1744562763761,6.27241,1594.3,1594.0,6.27351]
[1744562764141,14.32190084,1594.4,1594.1,6.27282]
[1744562764142,5.04994084,1594.4,1594.1,6.27282]
[1744562764342,4.21934084,1594.4,1594.1,12.54579]
[1744562765353,4.21934084,1594.4,1594.2,6.27265]
[1744562765538,16.76350084,1594.4,1594.0,6.27347]
[1744562765742,6.27305,1594.2,1593.9,0.8171]
[1744562766036,6.27305,1594.2,1594.1,0.15859507]
[1744562766347,10.49158084,1594.4,1593.9,7.09098]
[1744562766348,10.49148084,1594.4,1593.9,0.87983161]
[1744562766495,4.21934084,1594.4,1594.1,6.42893533]
[1744562766699,6.27247,1594.3,1594.1,0.15593533]
[1744562767001,6.27273,1594.2,1593.9,7.09089]
[1744562767697,13.31569,1594.2,1593.8,15.54846]
[1744562767988,7.04273,1594.2,1593.8,15.54846]
[1744562768393,7.04273,1594.2,1593.9,6.27377]
[1744562768597,0.77,1594.2,1593.9,6.27377]
[1744562768895,0.77,1594.2,1593.9,12.54753]
[1744562769286,0.77,1594.2,1594.0,6.27345]
[1744562769486,7.04201,1594.4,1594.0,7.59090411]
[1744562769653,6.27255,1594.3,1593.9,6.27387]
[1744562769859,6.27293,1594.2,1593.9,6.27387]
[1744562770083,6.27241,1594.3,1593.9,6.27374]
[1744562770284,6.27241,1594.3,1594.0,6.27334]
[1744562770515,6.27369,1594.0,1593.7,6.27466]
[1744562770681,6.27369,1594.0,1593.7,7.107423]
[1744562770997,0.8026,1593.9,1593.6,12.55004]
[1744562771883,0.8026,1594.1,1593.8,6.27411]
[1744562772306,3.06624882,1594.1,1593.4,7.239281]
[1744562772509,6.27443,1593.8,1593.5,6.27543]
[1744562772676,6.27443,1593.8,1593.5,7.6269011]
[1744562773274,6.27481,1593.7,1593.5,1.3514711]
[1744562773514,7.07741,1593.7,1593.4,6.27585]
[1744562773843,13.35235,1593.7,1593.3,13.37983]
[1744562774112,13.35235,1593.7,1593.3,7.10355]
[1744562774319,6.27656,1593.3,1592.8,7.10564]
[1744562774518,6.27656,1593.3,1592.9,6.2778]
[1744562774717,12.5531,1593.3,1592.9,6.2778]
[1744562774920,6.27654,1593.3,1592.9,12.55547]
[1744562775126,0.8026,1593.4,1593.0,0.06276822]
[1744562775416,6.2755,1593.5,1593.2,6.27662]
[1744562775625,6.27681,1593.2,1592.9,6.27785]
[1744562776731,0.8035,1593.4,1592.8,0.710564]
[1744562776732,6.27722,1593.1,1592.8,0.710564]
[1744562776906,7.08072,1593.1,1592.8,6.988734]
[1744562777112,7.08072,1593.1,1592.4,7.08378]
[1744562777113,6.27828,1592.8,1592.4,7.08378]
[1744562777289,12.556,1592.9,1592.5,6.27928]
[1744562777892,3.8035,1593.1,1592.4,0.8042]
[1744562778129,7.08215,1592.7,1592.3,6.28018]
[1744562778327,7.08215,1592.7,1592.4,0.628018]
[1744562778691,7.08215,1592.7,1592.4,6.907828]
[1744562779041,7.08215,1592.7,1592.4,0.628018]
[1744562780637,7.08215,1592.7,1592.4,6.907638]
[1744562780638,0.8035,1592.7,1592.4,6.907638]
[1744562780803,13.32616,1592.9,1592.5,7.10735]
[1744562781006,13.32616,1592.9,1592.5,8.68210761]
[1744562781628,7.04806,1592.9,1592.5,8.68210761]
[1744562781928,13.32615,1592.9,1592.5,8.68210761]
[1744562782129,7.04806,1592.9,1592.5,8.68210761]
[1744562782431,6.27834,1592.8,1592.5,8.68210761]
[1744562782728,6.27834,1592.8,1592.5,1.57475761]
[1744562783334,7.04808,1592.9,1592.5,6.45262481]
[1744562784032,6.27827,1592.8,1592.5,6.45262481]
[1744562784831,7.04808,1592.9,1592.5,6.51532049]
[1744562784996,13.32617,1592.9,1592.5,6.45253481]
[1744562785214,6.27859,1592.8,1592.5,0.17324481]
[1744562785416,12.55719,1592.8,1592.5,0.17324481]
[1744562785754,6.27859,1592.8,1592.5,0.17324481]
[1744562785954,6.27845,1592.8,1592.5,0.17324481]
[1744562786437,6.27845,1592.8,1592.5,6.45261481]
[1744562786951,12.5569,1592.8,1592.5,6.45261481]
[1744562787153,6.27845,1592.8,1592.5,6.45261481]
[1744562787657,7.04806,1592.9,1592.5,12.73184481]
[1744562787947,7.04806,1592.9,1592.6,0.8305]
[1744562788152,6.27786,1592.9,1592.6,0.8305]
[1744562788349,6.27751,1593.0,1592.7,0.17324481]
[1744562788563,6.27714,1593.1,1592.8,6.27825]
[1744562788714,15.55355,1593.2,1592.9,0.8305]
[1744562788916,7.857459,1593.2,1593.0,0.17263976]
[1744562789112,6.27669,1593.2,1593.0,0.17263976]
[1744562789418,6.17,1593.4,1593.0,0.17263976]
[1744562789419,6.27578,1593.5,1593.2,6.27654]
[1744562789754,6.27578,1593.5,1593.1,6.33970093]
[1744562789755,6.27588,1593.4,1593.3,0.17142977]
[1744562790119,6.27588,1593.4,1593.1,6.27693]
[1744562790318,6.27588,1593.4,1593.2,0.17142977]
[1744562790533,6.27588,1593.4,1593.1,6.27693]
[1744562790737,6.27588,1593.4,1593.3,0.17142977]
[1744562790933,6.27588,1593.4,1593.1,6.27693]
[1744562791135,6.27654,1593.3,1592.9,7.10823]
[1744562791451,6.2759,1593.4,1593.0,6.33999957]
[1744562792455,6.2759,1593.4,1593.1,6.27706]
[1744562793257,12.55199,1593.4,1593.0,6.27723]
[1744562793460,12.55199,1593.4,1593.0,13.265343]
[1744562793961,6.2759,1593.4,1593.0,13.265343]
[1744562794459,12.5512,1593.5,1593.1,12.5539]
[1744562795060,6.27557,1593.5,1593.1,12.5539]
[1744562795264,6.27557,1593.5,1593.2,6.27666]
[1744562795466,7.61293,1593.5,1593.2,6.27666]
[1744562795629,6.27605,1593.4,1593.1,6.27689]
[1744562796056,12.55215,1593.4,1593.2,0.15945415]
[1744562796276,6.27605,1593.4,1593.2,0.15945415]
[1744562796431,6.27628,1593.3,1593.0,12.55472]
[1744562796936,6.27628,1593.3,1593.0,6.27734]
[1744562797147,6.27628,1593.3,1593.0,6.27727]
[1744562797325,6.27689,1593.2,1592.9,7.10826]
[1744562797532,6.27689,1593.2,1592.9,6.27771]
[1744562797727,6.27739,1593.1,1592.7,7.1087]
[1744562797931,12.55355,1593.2,1592.8,12.55624]
[1744562798155,7.05405,1593.5,1593.1,6.27675]
[1744562798360,6.27601,1593.4,1593.1,6.987445]
[1744562798585,6.27601,1593.4,1593.1,6.27675]
[1744562799228,7.05397,1593.5,1593.1,6.27675]
[1744562799428,7.05397,1593.5,1593.2,6.27653]
[1744562799629,0.7784,1593.5,1593.2,6.27653]
[1744562799868,0.7784,1593.5,1593.2,12.55306]
[1744562800043,0.7784,1593.5,1593.2,13.808366]
[1744562800567,7.0539,1593.5,1593.2,7.531836]
[1744562800771,0.7784,1593.5,1593.0,7.10754]
[1744562801065,6.27643,1593.3,1593.0,7.10751]
[1744562801767,0.8256,1593.3,1592.8,6.27819]
[1744562801973,6.27704,1593.2,1592.8,6.27819]
[1744562802180,0.8256,1593.3,1593.0,6.2771]
[1744562802466,13.37779,1593.4,1593.0,6.2771]
[1744562802771,13.37783,1593.4,1593.0,12.55443]
[1744562804388,7.1016,1593.4,1593.1,6.27701]
[1744562804541,7.1016,1593.4,1593.1,12.55394]
[1744562804741,7.1016,1593.4,1593.0,6.27743]
[1744562805041,6.27636,1593.3,1593.0,6.27743]
[1744562805441,6.27669,1593.2,1592.9,7.08344]
[1744562806077,12.55286,1593.3,1592.9,13.36113]
[1744562806251,6.27636,1593.3,1593.0,6.27721]
[1744562807356,6.27636,1593.3,1592.9,13.36112]
[1744562807552,12.55282,1593.3,1593.0,6.27743]
[1744562807766,6.27683,1593.2,1592.9,13.36103]
[1744562808281,12.55377,1593.2,1592.9,0.8056]
[1744562808583,6.27683,1593.2,1592.9,0.8056]
[1744562808892,6.27683,1593.2,1592.9,7.08339]
[1744562809883,6.27635,1593.3,1592.9,13.36108]
[1744562810088,6.27566,1593.5,1592.9,8.6539205]
[1744562810272,12.55141,1593.5,1593.0,0.06276637]
[1744562810478,6.27602,1593.4,1593.1,6.27684]
[1744562810983,6.27602,1593.4,1593.2,0.16259856]
[1744562811354,6.27602,1593.4,1593.1,6.27684]
[1744562811593,6.27566,1593.5,1593.3,0.16259856]
[1744562811892,6.27604,1593.4,1593.0,12.55472]
[1744562812053,6.27604,1593.4,1593.1,7.04886]
[1744562812249,6.27477,1593.7,1593.4,7.04766]
[1744562812589,12.55092,1593.6,1593.2,13.32494]
[1744562812758,6.27546,1593.6,1593.2,13.32494]
[1744562813986,6.27546,1593.6,1593.3,6.27626]
[1744562814286,12.55073,1593.6,1593.3,6.27626]
[1744562814587,12.55073,1593.6,1593.2,13.32487]
[1744562815088,6.27527,1593.6,1593.2,13.32487]
[1744562815473,12.55062,1593.6,1593.2,13.32487]
[1744562815966,6.27527,1593.6,1593.3,6.27614]
[1744562816289,6.2755,1593.5,1593.2,7.04839]
[1744562816481,6.27527,1593.6,1593.2,13.32489]
[1744562816681,6.27527,1593.6,1593.2,7.0483]
[1744562816995,6.27527,1593.6,1593.3,6.27627]
[1744562818297,6.27572,1593.5,1593.2,7.0483]
[1744562818500,6.27572,1593.5,1593.2,8.380827]
[1744562818660,12.55144,1593.5,1593.2,7.0483]
[1744562819602,6.27572,1593.5,1593.2,7.0483]
[1744562820396,12.55153,1593.5,1593.2,0.7718]
[1744562822002,0.8282,1593.4,1593.0,0.8198]
[1744562822192,6.27659,1593.3,1592.9,13.3753]
[1744562822499,6.27659,1593.3,1592.9,14.71283]
[1744562823123,6.27659,1593.3,1593.0,6.27745]
[1744562823685,6.27681,1593.2,1592.9,14.71276]
[1744562823886,6.27659,1593.3,1592.9,8.43503]
[1744562824199,6.27679,1593.2,1592.9,13.37523]
[1744562824600,6.27659,1593.3,1593.0,6.27745]
[1744562824813,13.38023,1593.4,1593.0,12.55476]
[1744562825217,13.38023,1593.4,1593.0,6.27731]
[1744562826027,6.27629,1593.3,1593.1,0.15945439]
[1744562827127,18.97211,1593.6,1593.2,6.2766]
[1744562827128,6.27559,1593.5,1593.2,6.2766]
[1744562827433,6.27559,1593.5,1593.2,13.34716]
[1744562827590,6.27559,1593.5,1593.3,0.15945439]
[1744562829528,6.527,1593.6,1593.3,6.43568439]
[1744562829728,6.527,1593.6,1593.4,6.27582]
[1744562830030,12.54966,1593.7,1593.5,0.16066355]
[1744562830326,6.27479,1593.7,1593.5,0.16066355]
[1744562830529,6.27479,1593.7,1593.4,6.27582]
[1744562830730,6.27479,1593.7,1593.4,7.53102]
[1744562831098,12.54968,1593.7,1593.4,7.53102]
[1744562831303,12.54968,1593.7,1593.5,0.16066355]
[1744562831731,6.27479,1593.7,1593.5,0.16066355]
[1744562832234,12.54977,1593.7,1593.5,0.16066355]
[1744562832630,6.27479,1593.7,1593.5,0.16066355]
[1744562833031,11.93838482,1593.7,1593.5,0.16066355]
[1744562833844,5.66351482,1593.7,1593.5,0.16066355]
[1744562834011,11.93840482,1593.7,1593.5,0.16066355]
[1744562834333,9.98359403,1593.9,1593.6,0.8138]
[1744562834334,12.79693,1593.9,1593.6,0.8138]
[1744562834700,12.79693,1593.9,1593.7,0.15764039]
[1744562835301,12.79693,1593.9,1593.6,7.08888]
[1744562835833,12.79693,1593.9,1593.7,0.15739858]
[1744562836018,6.523,1593.9,1593.7,0.15739858]
[1744562836224,10.49293084,1594.0,1593.7,7.16298692]
[1744562836729,16.76665084,1594.0,1593.7,7.16298692]
[1744562837119,16.76665084,1594.0,1593.9,7.03401]
[1744562837120,4.21934084,1594.0,1593.9,7.03401]
[1744562837320,4.21934084,1594.0,1593.9,0.7601]
[1744562837523,4.21934084,1594.0,1593.9,8.51632508]
[1744562837735,4.21934084,1594.0,1593.9,2.24241508]
[1744562837938,4.21934084,1594.0,1593.9,8.51632508]
[1744562838435,10.49286084,1594.0,1593.9,0.15147608]
[1744562838641,10.49286084,1594.0,1593.7,6.27468]
[1744562838825,10.49286084,1594.0,1593.9,0.12794305]
[1744562839021,10.49286084,1594.0,1593.7,6.27468]
[1744562839206,4.21934084,1594.0,1593.9,0.12794305]
[1744562839407,4.21934084,1594.0,1593.7,12.54922]
[1744562839751,4.21934084,1594.0,1593.9,0.12794305]
[1744562839951,4.21934084,1594.0,1593.9,0.7601]
[1744562840249,4.21934084,1594.0,1593.9,7.16195305]
[1744562840427,4.21934084,1594.0,1593.9,8.50556436]
[1744562840930,12.54516,1594.3,1593.9,14.77930436]
[1744562841130,6.27252,1594.3,1593.9,14.77930436]
[1744562841746,6.27279,1594.2,1593.9,8.50539436]
[1744562842122,6.27279,1594.2,1593.9,0.12794305]
[1744562842123,7.04886,1594.2,1593.9,0.12794305]
[1744562842746,6.2733,1594.1,1593.9,0.12794305]
[1744562843035,7.04888,1594.2,1593.8,6.33687593]
[1744562843235,6.27278,1594.2,1594.0,0.12794305]
[1744562843402,6.27278,1594.2,1593.8,6.33687593]
[1744562843607,12.54586,1594.2,1594.1,0.12794305]
[1744562843809,12.54586,1594.2,1593.8,6.27414]
[1744562844024,6.27334,1594.1,1593.8,6.27414]
[1744562844220,6.27361,1594.0,1593.7,0.7785]
[1744562844405,6.27408,1593.9,1593.6,0.7785]
[1744562844601,6.27408,1593.9,1593.6,7.758847]
[1744562845047,6.27408,1593.9,1593.6,14.033817]
[1744562845749,6.27454,1593.8,1593.6,1.483877]
[1744562845951,6.2747,1593.7,1593.4,13.34591]
[1744562846311,6.27454,1593.8,1593.5,6.27549]
[1744562846747,7.04968,1594.0,1593.4,0.7945]
[1744562846914,7.04967,1594.0,1593.6,6.27473]
[1744562847113,6.27405,1593.9,1593.6,6.27473]
[1744562848557,6.27437,1593.8,1593.5,6.27544]
[1744562848851,12.54899,1593.8,1593.4,13.34614]
[1744562849343,6.27437,1593.8,1593.4,13.34614]
[1744562849548,6.27437,1593.8,1593.4,15.332854]
[1744562850057,12.54894,1593.8,1593.4,15.332854]
[1744562850220,7.09046,1593.7,1593.4,6.27577]
[1744562851217,0.8156,1593.7,1593.3,7.3155]
[1744562851418,6.2757,1593.5,1593.1,14.61968044]
[1744562851947,6.2757,1593.5,1593.2,6.27667]
[1744562852153,6.27513,1593.6,1593.2,12.55316]
[1744562852444,6.27513,1593.6,1593.2,14.01506704]
[1744562853653,12.55042,1593.6,1593.2,14.01506704]
[1744562854119,6.27568,1593.5,1593.2,7.73839704]
[1744562854319,13.36711,1593.5,1593.1,8.34296044]
[1744562854521,6.27588,1593.4,1593.1,8.34296044]
[1744562855555,12.55195,1593.4,1593.1,2.06591044]
[1744562855719,6.27636,1593.3,1593.0,12.79841]
[1744562856055,6.27636,1593.3,1593.1,0.14074511]
[1744562856478,12.55215,1593.4,1593.1,0.14074511]
[1744562857231,13.36682,1593.5,1593.1,12.69470511]
[1744562857442,13.36682,1593.5,1593.1,14.61627562]
[1744562857758,9.2752,1593.6,1593.2,7.10746761]
[1744562858050,15.55063,1593.6,1593.3,0.14134931]
[1744562858257,6.27553,1593.5,1593.3,0.14134931]
[1744562860122,9.2752,1593.6,1593.3,6.41757931]
[1744562860340,12.55049,1593.6,1593.3,6.41757931]
[1744562860674,6.2755,1593.5,1593.3,0.14134931]
[1744562862039,6.27588,1593.4,1593.3,0.14134931]
[1744562862244,14.597768,1593.4,1593.0,19.90012]
[1744562862477,6.27633,1593.3,1593.1,0.14436936]
[1744562862680,6.27667,1593.2,1593.1,0.14436936]
[1744562862878,12.55365,1593.2,1592.8,7.10261]
[1744562863175,12.55365,1593.2,1592.9,0.14497354]
[1744562863372,14.599715,1593.2,1592.9,0.14497354]
[1744562863535,14.599715,1593.2,1592.8,7.10261]
[1744562863735,13.34435,1593.2,1592.8,7.10261]
[1744562863953,13.34435,1593.2,1592.9,0.14497354]
[1744562864373,13.34435,1593.2,1592.8,13.38069]
[1744562864576,7.06737,1593.2,1593.0,0.14702805]
[1744562864740,7.06737,1593.2,1592.8,13.38069]
[1744562864940,7.06737,1593.2,1593.1,0.14702805]
[1744562865477,0.7907,1593.2,1593.1,0.14702805]
[1744562865681,7.04606,1593.3,1593.0,6.27733]
[1744562865978,7.04606,1593.3,1593.1,0.14702805]
[1744562866677,6.27598,1593.4,1593.1,0.95952805]
[1744562866845,6.27598,1593.4,1593.1,7.23642805]
[1744562867177,7.04521,1593.5,1593.1,8.58780786]
[1744562867352,6.27551,1593.5,1593.2,6.27667]
[1744562867747,6.27551,1593.5,1593.3,0.14642374]
[1744562867949,12.55118,1593.5,1593.3,0.14642374]
[1744562868155,6.27588,1593.4,1593.3,0.14642374]
[1744562868357,6.27628,1593.3,1593.1,0.8125]
[1744562868782,6.27588,1593.4,1593.2,0.14642374]
[1744562869277,6.27588,1593.4,1593.1,7.08956]
[1744562869468,6.27588,1593.4,1593.2,0.14642374]
[1744562869656,6.27588,1593.4,1593.1,7.08956]
[1744562869844,6.27588,1593.4,1593.2,0.14642374]
[1744562870051,6.27588,1593.4,1593.1,14.703026]
[1744562870381,6.27588,1593.4,1593.2,0.14642374]
[1744562870886,6.27628,1593.3,1593.1,0.8125]
[1744562871047,6.27628,1593.3,1593.2,0.14642374]
[1744562871361,6.27628,1593.3,1593.1,0.8125]
[1744562871575,6.27628,1593.3,1593.2,0.14642374]
[1744562871969,6.27628,1593.3,1593.1,0.8125]
[1744562872171,6.27628,1593.3,1593.2,0.14642374]
[1744562872478,6.27628,1593.3,1593.1,0.8125]
[1744562872680,6.27628,1593.3,1593.2,0.14787382]
[1744562872880,6.27628,1593.3,1593.1,0.8125]
[1744562873077,6.27628,1593.3,1593.2,0.14787382]
[1744562873378,6.27628,1593.3,1593.1,0.8125]
[1744562873749,6.27628,1593.3,1593.2,0.14787382]
[1744562874078,6.27628,1593.3,1593.1,0.8125]
[1744562874283,6.27588,1593.4,1593.2,0.14787382]
[1744562874470,7.04528,1593.5,1593.2,6.2764]
[1744562874780,12.55054,1593.6,1593.3,0.14787382]
[1744562875149,12.55054,1593.6,1593.1,2.149215]
[1744562875150,6.27549,1593.5,1593.2,6.27653]
[1744562875547,6.27549,1593.5,1593.3,0.14702785]
[1744562875950,6.27523,1593.6,1593.4,0.8152]
[1744562876550,6.27523,1593.6,1593.5,0.14702785]
[1744562878184,6.516,1593.7,1593.5,0.14702785]
[1744562878386,6.516,1593.7,1593.5,6.42237785]
[1744562878585,6.27439,1593.8,1593.5,12.69773785]
[1744562878881,6.27439,1593.8,1593.5,14.04903164]
[1744562879089,6.27439,1593.8,1593.5,7.77367164]
[1744562879290,12.54892,1593.8,1593.5,7.77367164]
[1744562879477,6.27439,1593.8,1593.5,7.77367164]
[1744562879792,6.27439,1593.8,1593.5,14.04903164]
[1744562879993,6.27358,1594.0,1593.7,6.27458]
[1744562880180,6.27358,1594.0,1593.6,8.49510316]
[1744562880501,6.27446,1593.8,1593.6,2.22010316]
[1744562880658,12.55048,1593.6,1593.3,1.27000779]
[1744562881050,7.09304,1593.5,1593.3,1.27000779]
[1744562881364,6.27588,1593.4,1593.1,6.27687]
[1744562881884,0.8175,1593.5,1593.0,0.8055]
[1744562882066,6.27527,1593.6,1593.3,0.8055]
[1744562882269,12.5514,1593.5,1593.2,0.8055]
[1744562882470,6.27564,1593.5,1593.2,8.418041]
[1744562882901,12.55131,1593.5,1593.2,8.418041]
[1744562883191,12.55053,1593.6,1593.2,14.694651]
[1744562883388,6.27572,1593.5,1593.1,6.27695]
[1744562883554,6.27605,1593.4,1593.1,6.27695]
[1744562885359,6.27605,1593.4,1593.0,7.08288]
[1744562885360,6.2764,1593.3,1593.0,0.8055]
[1744562885560,6.2764,1593.3,1592.8,6.27824]
[1744562885561,6.27727,1593.1,1592.8,6.27824]
[1744562885857,6.27804,1592.9,1592.6,7.09174]
[1744562886095,7.08663,1593.0,1592.7,0.14545686]
[1744562886268,6.27715,1593.1,1592.7,12.70239686]
[1744562886460,6.27715,1593.1,1592.8,0.8128]
[1744562886697,7.08578,1593.2,1592.9,0.1334462]
[1744562886992,7.08578,1593.2,1592.8,8.44242969]
[1744562886993,0.8091,1593.2,1592.8,2.16431969]
[1744562887194,6.27741,1593.1,1593.0,0.1334462]
[1744562887493,6.27762,1593.0,1592.7,7.09136]
[1744562888356,0.8091,1592.9,1592.6,0.8128]
[1744562888562,0.8091,1592.9,1592.5,7.09214]
[1744562888866,7.08711,1592.9,1592.6,0.709214]
[1744562889278,6.27826,1592.8,1592.6,0.709214]
[1744562889479,6.27826,1592.8,1592.5,0.8128]
[1744562889662,6.27826,1592.8,1592.5,7.09214]
[1744562889994,7.08701,1592.9,1592.6,6.27902]
[1744562890967,0.8091,1592.9,1592.6,12.55804]
[1744562891179,6.27753,1593.0,1592.7,6.2785]
[1744562891380,7.08984,1593.3,1593.0,6.27742]
[1744562891599,7.08968,1593.3,1593.0,6.27742]
[1744562891808,7.08968,1593.3,1592.9,7.04605]
[1744562892110,6.27684,1593.2,1592.9,0.7682]
[1744562892478,6.27718,1593.1,1592.8,7.04635]
[1744562892693,12.55383,1593.2,1592.8,14.65693]
[1744562893187,6.27711,1593.1,1592.8,8.37878]
[1744562893364,6.27711,1593.1,1592.8,14.65687]
[1744562893564,6.27684,1593.2,1592.9,6.27784]
[1744562893764,6.27684,1593.2,1592.9,6.27773]
[1744562894001,6.27684,1593.2,1592.9,7.743389]
[1744562894192,7.08956,1593.3,1593.0,6.27734]
[1744562896367,10.38934084,1593.4,1593.1,7.04514]
[1744562896567,4.21934084,1593.4,1593.1,13.32208]
[1744562896767,4.21934084,1593.4,1593.2,1.332208]
[1744562897472,12.78856,1593.5,1593.2,1.332208]
[1744562898028,19.06428,1593.5,1593.2,1.332208]
[1744562898327,19.06428,1593.5,1593.1,13.32208]
[1744562900330,12.5521,1593.4,1593.1,7.04514]
[1744562901029,12.5521,1593.4,1593.2,0.13719258]
[1744562901405,13.3653,1593.4,1593.1,6.27694]